lending/lending_fUSD_20250516
["ID","MTS","AMOUNT","RATE_DAILY","PERIOD"]
[361289418,1747426253336,-422.29,0.000166,2]
[361289419,1747426253345,-300.24,0.000166,2]
[361289420,1747426253354,-353.05,0.000166,2]
[361289421,1747426253363,-151.0,0.00016612,2]
[361289422,1747426253372,-12870.2593692,0.00016612,2]
[361289423,1747426253381,-12524.95722948,0.00016612,2]
[361289424,1747426253391,-794.117652,0.00016612,2]
[361289425,1747426253399,-794.117652,0.00016612,2]
[361289426,1747426253409,-413.17885428,0.00016655,2]
[361289427,1747426253418,-8000.0,0.00016661,3]
[361289428,1747426253427,-150.83,0.00016686,2]
[361289429,1747426253436,-12870.2593692,0.00016703,2]
[361289430,1747426253445,-12524.95722948,0.00016703,2]
[361289431,1747426253455,-500.0,0.00016711,2]
[361289432,1747426253464,-500.0,0.00016711,2]
[361289433,1747426253474,-500.0,0.00016711,2]
[361289434,1747426253483,-500.0,0.00016711,2]
[361289435,1747426253492,-173.33080426,0.00016711,2]
[361289436,1747426253501,-1300.22,0.00016711,2]
[361289437,1747426253510,-1300.22,0.00016711,2]
[361289438,1747426253519,-1300.22,0.00016711,2]
[361289439,1747426253528,-1300.22,0.00016711,2]
[361289440,1747426253538,-1300.22,0.00016711,2]
[361289441,1747426253547,-400.0,0.00016712,2]
[361289442,1747426253556,-3463.31783103,0.00016712,2]
[361289443,1747426253566,-5053.10644177,0.00016712,2]
[361289444,1747426253575,-151.0,0.00016712,2]
[361289445,1747426253702,-151.0,0.00016712,2]
[361289446,1747426253712,-151.0,0.00016712,2]
[361289447,1747426253722,-206.689085,0.00016712,2]
[361289448,1747426253731,-151.0,0.00016712,2]
[361289449,1747426253740,-248.044585,0.00016712,2]
[361289450,1747426253750,-169.573021,0.00016712,2]
[361289451,1747426253760,-667.67,0.00016712,2]
[361289452,1747426253769,-787.33,0.00016712,2]
[361289453,1747426253778,-400.0,0.00016712,2]
[361289454,1747426253791,-400.0,0.00016712,2]
[361289455,1747426253801,-400.0,0.00016712,2]
[361289456,1747426253810,-400.0,0.00016712,2]
[361289457,1747426253819,-443.38,0.00016712,2]
[361289458,1747426253829,-556.07,0.00016712,2]
[361289459,1747426253839,-400.0,0.00016712,2]
[361289460,1747426253848,-855.44,0.00016712,2]
[361289461,1747426253858,-474.12,0.00016712,2]
[361289462,1747426253867,-476.67,0.00016712,2]
[361289463,1747426253878,-675.85,0.00016712,2]
[361289464,1747426253887,-400.0,0.00016712,2]
[361289465,1747426253896,-637.5,0.00016712,2]
[361289466,1747426253905,-400.0,0.00016712,2]
[361289467,1747426253914,-400.0,0.00016712,2]
[361289468,1747426253923,-929.35,0.00016712,2]
[361289469,1747426253933,-421.55964622,0.00016712,2]
[361289470,1747426253942,-400.0,0.00016712,2]
[361289471,1747426253952,-400.0,0.00016712,2]
[361289472,1747426253961,-790.8,0.00016712,2]
[361289473,1747426253970,-400.0,0.00016712,2]
[361289474,1747426253979,-400.0,0.00016712,2]
[361289475,1747426253989,-400.0,0.00016712,2]
[361289476,1747426253998,-400.0,0.00016712,2]
[361289477,1747426254007,-400.0,0.00016712,2]
[361289478,1747426254016,-502.44,0.00016712,2]
[361289479,1747426254025,-650.43,0.00016712,2]
[361289480,1747426254034,-952.98,0.00016712,2]
[361289481,1747426254043,-545.63,0.00016712,2]
[361289482,1747426254053,-400.0,0.00016712,2]
[361289483,1747426254062,-400.0,0.00016712,2]
[361289484,1747426254071,-526.77,0.00016712,2]
[361289485,1747426254080,-400.0,0.00016712,2]
[361289486,1747426254090,-657.97,0.00016712,2]
[361289487,1747426254099,-556.89,0.00016712,2]
[361289488,1747426254108,-400.0,0.00016712,2]
[361289489,1747426254116,-1165.28,0.00016712,2]
[361289490,1747426254126,-473.32,0.00016712,2]
[361289491,1747426254135,-400.0,0.00016712,2]
[361289492,1747426254144,-349.92,0.00016712,2]
[361289493,1747426254153,-400.0,0.00016712,2]
[361289494,1747426254164,-400.0,0.00016712,2]
[361289495,1747426254174,-400.0,0.00016712,2]
[361289496,1747426254185,-792.76,0.00016712,2]
[361289497,1747426254194,-544.94,0.00016712,2]
[361289498,1747426254203,-770.68,0.00016712,2]
[361289499,1747426254212,-400.0,0.00016712,2]
[361289500,1747426254221,-400.0,0.00016712,2]
[361289501,1747426254231,-615.12,0.00016712,2]
[361289502,1747426254239,-400.0,0.00016712,2]
[361289503,1747426254248,-400.0,0.00016712,2]
[361289504,1747426254258,-633.58,0.00016712,2]
[361289505,1747426254267,-400.0,0.00016712,2]
[361289506,1747426254279,-400.0,0.00016712,2]
[361289507,1747426254289,-400.0,0.00016712,2]
[361289508,1747426254299,-400.0,0.00016712,2]
[361289509,1747426254309,-460.53,0.00016712,2]
[361289510,1747426254318,-348.07,0.00016712,2]
[361289511,1747426254327,-400.0,0.00016712,2]
[361289512,1747426254336,-400.0,0.00016712,2]
[361289513,1747426254346,-400.0,0.00016712,2]
[361289514,1747426254355,-400.0,0.00016712,2]
[361289515,1747426254365,-400.0,0.00016712,2]
[361289516,1747426254374,-400.0,0.00016712,2]
[361289517,1747426254383,-620.19,0.00016712,2]
[361289518,1747426254393,-400.0,0.00016712,2]
[361289519,1747426254403,-906.77,0.00016712,2]
[361289520,1747426254412,-400.0,0.00016712,2]
[361289521,1747426254422,-400.0,0.00016712,2]
[361289522,1747426254431,-558.44,0.00016712,2]
[361289523,1747426254441,-424.76167559,0.00016712,2]
[361289524,1747426254450,-878.75,0.00016712,2]
[361289525,1747426254460,-514.88,0.00016712,2]
[361289526,1747426254469,-400.0,0.00016712,2]
[361289527,1747426254479,-400.0,0.00016712,2]
[361289528,1747426254488,-427.66,0.00016712,2]
[361289529,1747426254497,-1463.56,0.00016712,2]
[361289530,1747426254507,-812.74,0.00016712,2]
[361289531,1747426254516,-407.16,0.00016712,2]
[361289532,1747426254525,-400.0,0.00016712,2]
[361289533,1747426254534,-400.0,0.00016712,2]
[361289534,1747426254543,-422.28200069,0.00016712,2]
[361289535,1747426254557,-400.0,0.00016712,2]
[361289536,1747426254566,-400.0,0.00016712,2]
[361289537,1747426254576,-373.99581392,0.00016712,2]
[361289538,1747426254585,-400.0,0.00016712,2]
[361289539,1747426254595,-400.0,0.00016712,2]
[361289540,1747426254605,-489.73,0.00016712,2]
[361289541,1747426254615,-1026.75,0.00016712,2]
[361289542,1747426254625,-951.88,0.00016712,2]
[361289543,1747426254636,-512.08,0.00016712,2]
[361289544,1747426254646,-1323.21,0.00016712,2]
[361289545,1747426254655,-400.0,0.00016712,2]
[361289546,1747426254665,-400.0,0.00016712,2]
[361289547,1747426254675,-527.12,0.00016712,2]
[361289548,1747426254687,-400.0,0.00016712,2]
[361289549,1747426254696,-1686.26,0.00016712,2]
[361289550,1747426254706,-400.0,0.00016712,2]
[361289551,1747426254715,-400.0,0.00016712,2]
[361289552,1747426254724,-400.0,0.00016712,2]
[361289553,1747426254733,-400.0,0.00016712,2]
[361289554,1747426254743,-400.0,0.00016712,2]
[361289555,1747426254752,-644.11,0.00016712,2]
[361289556,1747426254762,-400.0,0.00016712,2]
[361289557,1747426254772,-400.0,0.00016712,2]
[361289558,1747426254782,-400.0,0.00016712,2]
[361289559,1747426254796,-400.0,0.00016712,2]
[361289560,1747426254805,-445.94,0.00016712,2]
[361289561,1747426254815,-400.0,0.00016712,2]
[361289562,1747426254825,-400.0,0.00016712,2]
[361289563,1747426254836,-1651.13,0.00016712,2]
[361289564,1747426254846,-400.0,0.00016712,2]
[361289565,1747426254855,-2369.28,0.00016712,2]
[361289566,1747426254866,-400.0,0.00016712,2]
[361289567,1747426254875,-401.12,0.00016712,2]
[361289568,1747426254884,-1455.8,0.00016712,2]
[361289569,1747426254893,-400.0,0.00016712,2]
[361289570,1747426254903,-486.19,0.00016712,2]
[361289571,1747426254912,-454.02,0.00016712,2]
[361289572,1747426254921,-686.36,0.00016712,2]
[361289573,1747426254930,-400.0,0.00016712,2]
[361289574,1747426254939,-673.39,0.00016712,2]
[361289575,1747426254948,-738.79,0.00016712,2]
[361289576,1747426254957,-1130.85,0.00016712,2]
[361289577,1747426254967,-400.0,0.00016712,2]
[361289578,1747426254975,-400.0,0.00016712,2]
[361289579,1747426254985,-196.0428241,0.00016712,2]
[361289580,1747426254994,-400.0,0.00016712,2]
[361289581,1747426255003,-400.0,0.00016712,2]
[361289582,1747426255012,-400.0,0.00016712,2]
[361289583,1747426255021,-1510.24,0.00016712,2]
[361289584,1747426255030,-400.0,0.00016712,2]
[361289585,1747426255039,-400.0,0.00016712,2]
[361289586,1747426255048,-449.8,0.00016712,2]
[361289587,1747426255057,-400.0,0.00016712,2]
[361289588,1747426255066,-265.64212646,0.00016712,2]
[361289589,1747426255075,-492.26,0.00016712,2]
[361289590,1747426255084,-655.53,0.00016712,2]
[361289591,1747426255094,-400.0,0.00016712,2]
[361289592,1747426255103,-499.94,0.00016712,2]
[361289593,1747426255113,-400.0,0.00016712,2]
[361289594,1747426255122,-832.45,0.00016712,2]
[361289595,1747426255131,-483.69,0.00016712,2]
[361289596,1747426255140,-523.68,0.00016712,2]
[361289597,1747426255149,-400.0,0.00016712,2]
[361289598,1747426255158,-790.02,0.00016712,2]
[361289599,1747426255167,-603.53,0.00016712,2]
[361289600,1747426255176,-535.3,0.00016712,2]
[361289601,1747426255186,-684.09,0.00016712,2]
[361289602,1747426255195,-736.58,0.00016712,2]
[361289603,1747426255204,-400.0,0.00016712,2]
[361289604,1747426255213,-644.1,0.00016712,2]
[361289605,1747426255222,-474.64,0.00016712,2]
[361289606,1747426255231,-455.84117714,0.00016712,2]
[361289607,1747426255241,-431.98,0.00016712,2]
[361289608,1747426255250,-969.54,0.00016712,2]
[361289609,1747426255259,-400.0,0.00016712,2]
[361289610,1747426255269,-765.0,0.00016712,2]
[361289611,1747426255278,-400.0,0.00016712,2]
[361289612,1747426255287,-400.0,0.00016712,2]
[361289613,1747426255297,-621.57,0.00016712,2]
[361289614,1747426255306,-628.41,0.00016712,2]
[361289615,1747426255316,-1095.28,0.00016712,2]
[361289616,1747426255325,-450.0,0.00016712,2]
[361289617,1747426255335,-400.0,0.00016712,2]
[361289618,1747426255345,-758.47,0.00016712,2]
[361289619,1747426255354,-400.0,0.00016712,2]
[361289620,1747426255364,-1018.1,0.00016712,2]
[361289621,1747426255373,-400.0,0.00016712,2]
[361289622,1747426255382,-400.0,0.00016712,2]
[361289623,1747426255391,-230.0,0.00016712,2]
[361289624,1747426255400,-755.87,0.00016712,2]
[361289625,1747426255409,-1424.01,0.00016712,2]
[361289626,1747426255419,-400.0,0.00016712,2]
[361289627,1747426255428,-412.49,0.00016712,2]
[361289628,1747426255437,-993.57,0.00016712,2]
[361289629,1747426255447,-400.0,0.00016712,2]
[361289630,1747426255456,-400.0,0.00016712,2]
[361289631,1747426255466,-400.0,0.00016712,2]
[361289632,1747426255476,-696.37,0.00016712,2]
[361289633,1747426255486,-400.0,0.00016712,2]
[361289634,1747426255495,-633.36,0.00016712,2]
[361289635,1747426255504,-400.0,0.00016712,2]
[361289636,1747426255514,-532.61,0.00016712,2]
[361289637,1747426255523,-583.4,0.00016712,2]
[361289638,1747426255532,-424.45,0.00016712,2]
[361289639,1747426255543,-400.0,0.00016712,2]
[361289640,1747426255554,-400.0,0.00016712,2]
[361289641,1747426255564,-400.0,0.00016712,2]
[361289642,1747426255573,-550.5,0.00016712,2]
[361289643,1747426255583,-400.0,0.00016712,2]
[361289644,1747426255592,-390.16693287,0.00016712,2]
[361289645,1747426255602,-150.22492481,0.00016712,2]
[361289646,1747426255611,-624.39,0.00016712,2]
[361289647,1747426255621,-950.87,0.00016712,2]
[361289648,1747426255631,-1535.87,0.00016712,2]
[361289649,1747426255641,-1122.43,0.00016712,2]
[361289650,1747426255651,-356.83,0.00016712,2]
[361289651,1747426255661,-400.0,0.00016712,2]
[361289652,1747426255671,-474.59,0.00016712,2]
[361289653,1747426255680,-400.0,0.00016712,2]
[361289654,1747426255690,-450.0,0.00016712,2]
[361289655,1747426255699,-1418.66,0.00016712,2]
[361289656,1747426255709,-400.0,0.00016712,2]
[361289657,1747426255718,-795.22,0.00016712,2]
[361289658,1747426255727,-400.0,0.00016712,2]
[361289659,1747426255736,-288.2727534,0.00016712,2]
[361289660,1747426256075,-467.67,0.00016712,2]
[361289661,1747426256087,-833.35,0.00016712,2]
[361289662,1747426256097,-400.0,0.00016712,2]
[361289663,1747426256106,-400.0,0.00016712,2]
[361289664,1747426256116,-744.84,0.00016712,2]
[361289665,1747426256126,-714.37,0.00016712,2]
[361289666,1747426256136,-400.0,0.00016712,2]
[361289667,1747426256146,-1735.08,0.00016712,2]
[361289668,1747426256156,-400.0,0.00016712,2]
[361289669,1747426256166,-1180.43,0.00016712,2]
[361289670,1747426256175,-634.22,0.00016712,2]
[361289671,1747426256184,-559.54,0.00016712,2]
[361289672,1747426256194,-400.0,0.00016712,2]
[361289673,1747426256203,-802.51,0.00016712,2]
[361289674,1747426256213,-400.0,0.00016712,2]
[361289675,1747426256224,-597.17,0.00016712,2]
[361289676,1747426256235,-538.15,0.00016712,2]
[361289677,1747426256245,-1023.74,0.00016712,2]
[361289678,1747426256255,-450.0,0.00016712,2]
[361289679,1747426256265,-1233.41,0.00016712,2]
[361289680,1747426256275,-400.0,0.00016712,2]
[361289681,1747426256284,-400.0,0.00016712,2]
[361289682,1747426256294,-400.0,0.00016712,2]
[361289683,1747426256303,-469.21,0.00016712,2]
[361289684,1747426256313,-637.47,0.00016712,2]
[361289685,1747426256323,-1179.71,0.00016712,2]
[361289686,1747426256332,-1501.86,0.00016712,2]
[361289687,1747426256342,-1006.4,0.00016712,2]
[361289688,1747426256351,-455.24,0.00016712,2]
[361289689,1747426256361,-400.0,0.00016712,2]
[361289690,1747426256370,-1228.87,0.00016712,2]
[361289691,1747426256380,-450.0,0.00016712,2]
[361289692,1747426256390,-400.0,0.00016712,2]
[361289693,1747426256399,-400.0,0.00016712,2]
[361289694,1747426256409,-616.99,0.00016712,2]
[361289695,1747426256419,-400.0,0.00016712,2]
[361289696,1747426256428,-400.0,0.00016712,2]
[361289697,1747426256438,-536.8,0.00016712,2]
[361289698,1747426256447,-400.0,0.00016712,2]
[361289699,1747426256456,-400.0,0.00016712,2]
[361289700,1747426256466,-400.0,0.00016712,2]
[361289701,1747426256476,-432.42,0.00016712,2]
[361289702,1747426256486,-958.08,0.00016712,2]
[361289703,1747426256496,-400.0,0.00016712,2]
[361289704,1747426256506,-400.0,0.00016712,2]
[361289705,1747426256515,-400.0,0.00016712,2]
[361289706,1747426256526,-634.88,0.00016712,2]
[361289707,1747426256535,-400.0,0.00016712,2]
[361289708,1747426256544,-446.66,0.00016712,2]
[361289709,1747426256554,-647.43,0.00016712,2]
[361289710,1747426256563,-400.0,0.00016712,2]
[361289711,1747426256573,-400.0,0.00016712,2]
[361289712,1747426256582,-457.94,0.00016712,2]
[361289713,1747426256592,-400.0,0.00016712,2]
[361289714,1747426256601,-400.0,0.00016712,2]
[361289715,1747426256611,-400.0,0.00016712,2]
[361289716,1747426256620,-495.2,0.00016712,2]
[361289717,1747426256630,-568.77,0.00016712,2]
[361289718,1747426256639,-400.0,0.00016712,2]
[361289719,1747426256648,-485.77,0.00016712,2]
[361289720,1747426256658,-1271.7,0.00016712,2]
[361289721,1747426256667,-522.01673203,0.00016712,2]
[361289722,1747426256676,-1248.24,0.00016712,2]
[361289723,1747426256686,-803.95,0.00016712,2]
[361289724,1747426256696,-500.0,0.00016712,2]
[361289725,1747426256705,-1129.43,0.00016712,2]
[361289726,1747426256715,-1439.71,0.00016712,2]
[361289727,1747426256724,-400.0,0.00016712,2]
[361289728,1747426256734,-450.0,0.00016712,2]
[361289729,1747426256743,-400.0,0.00016712,2]
[361289730,1747426256752,-400.0,0.00016712,2]
[361289731,1747426256762,-400.0,0.00016712,2]
[361289732,1747426256772,-616.61,0.00016712,2]
[361289733,1747426256781,-533.86,0.00016712,2]
[361289734,1747426256794,-400.0,0.00016712,2]
[361289735,1747426256803,-448.79,0.00016712,2]
[361289736,1747426256813,-400.0,0.00016712,2]
[361289737,1747426256822,-400.0,0.00016712,2]
[361289738,1747426256832,-860.17,0.00016712,2]
[361289739,1747426256842,-767.96,0.00016712,2]
[361289740,1747426256852,-478.73,0.00016712,2]
[361289741,1747426256862,-722.5,0.00016712,2]
[361289742,1747426256871,-400.0,0.00016712,2]
[361289743,1747426256883,-400.0,0.00016712,2]
[361289744,1747426256892,-673.89,0.00016712,2]
[361289745,1747426256901,-192.90751446,0.00016712,2]
[361289746,1747426256910,-400.0,0.00016712,2]
[361289747,1747426256919,-400.0,0.00016712,2]
[361289748,1747426256929,-775.08,0.00016712,2]
[361289749,1747426256938,-450.0,0.00016712,2]
[361289750,1747426256947,-400.0,0.00016712,2]
[361289751,1747426256957,-450.0,0.00016712,2]
[361289752,1747426256968,-411.25,0.00016712,2]
[361289753,1747426256978,-638.46,0.00016712,2]
[361289754,1747426256987,-400.0,0.00016712,2]
[361289755,1747426256996,-400.0,0.00016712,2]
[361289756,1747426257006,-1115.75,0.00016712,2]
[361289757,1747426257015,-608.86,0.00016712,2]
[361289758,1747426257024,-400.0,0.00016712,2]
[361289759,1747426257033,-400.0,0.00016712,2]
[361289760,1747426257043,-597.1,0.00016712,2]
[361289761,1747426257052,-151.0,0.00016712,2]
[361289762,1747426257061,-400.0,0.00016712,2]
[361289763,1747426257071,-151.0,0.00016712,2]
[361289764,1747426257080,-151.0,0.00016712,2]
[361289765,1747426257091,-246.956723,0.00016712,2]
[361289766,1747426257100,-466.56,0.00016712,2]
[361289767,1747426257109,-450.0,0.00016712,2]
[361289768,1747426257119,-400.0,0.00016712,2]
[361289769,1747426257128,-856.98,0.00016712,2]
[361289770,1747426257138,-923.98,0.00016712,2]
[361289771,1747426257147,-400.0,0.00016712,2]
[361289772,1747426257156,-400.0,0.00016712,2]
[361289773,1747426257165,-770.11,0.00016712,2]
[361289774,1747426257174,-400.0,0.00016712,2]
[361289775,1747426257184,-400.0,0.00016712,2]
[361289776,1747426257193,-256.82022159,0.00016712,2]
[361289777,1747426257203,-405.85,0.00016712,2]
[361289778,1747426257212,-400.0,0.00016712,2]
[361289779,1747426257222,-506.39539064,0.00016712,2]
[361289780,1747426257231,-1124.11,0.00016712,2]
[361289781,1747426257240,-400.0,0.00016712,2]
[361289782,1747426257250,-829.89,0.00016712,2]
[361289783,1747426257259,-400.0,0.00016712,2]
[361289784,1747426257269,-400.0,0.00016712,2]
[361289785,1747426257278,-644.21,0.00016712,2]
[361289786,1747426257287,-400.0,0.00016712,2]
[361289787,1747426257296,-276.471926,0.00016712,2]
[361289788,1747426257306,-1474.33,0.00016712,2]
[361289789,1747426257316,-400.0,0.00016712,2]
[361289790,1747426257325,-446.35,0.00016712,2]
[361289791,1747426257334,-639.43,0.00016712,2]
[361289792,1747426257344,-400.0,0.00016712,2]
[361289793,1747426257355,-539.17,0.00016712,2]
[361289794,1747426257364,-406.75,0.00016712,2]
[361289795,1747426257373,-400.0,0.00016712,2]
[361289796,1747426257382,-400.0,0.00016712,2]
[361289797,1747426257392,-567.13,0.00016712,2]
[361289798,1747426257401,-400.0,0.00016712,2]
[361289799,1747426257411,-450.0,0.00016712,2]
[361289800,1747426257420,-400.0,0.00016712,2]
[361289801,1747426257430,-400.0,0.00016712,2]
[361289802,1747426257439,-180.22249384,0.00016712,2]
[361289803,1747426257449,-989.03,0.00016712,2]
[361289804,1747426257459,-400.0,0.00016712,2]
[361289805,1747426257468,-400.0,0.00016712,2]
[361289806,1747426257478,-400.0,0.00016712,2]
[361289807,1747426257487,-508.13,0.00016712,2]
[361289808,1747426257497,-2018.94,0.00016712,2]
[361289809,1747426257506,-400.0,0.00016712,2]
[361289810,1747426257515,-967.48,0.00016712,2]
[361289811,1747426257525,-2408.78,0.00016712,2]
[361289812,1747426257534,-400.0,0.00016712,2]
[361289813,1747426257543,-177.35724212,0.00016712,2]
[361289814,1747426257553,-1187.98,0.00016712,2]
[361289815,1747426257562,-511.33,0.00016712,2]
[361289816,1747426257571,-400.0,0.00016712,2]
[361289817,1747426257581,-163.05767693,0.00016712,2]
[361289818,1747426257590,-400.0,0.00016712,2]
[361289819,1747426257600,-500.0,0.00016712,2]
[361289820,1747426257609,-947.35,0.00016712,2]
[361289821,1747426257618,-400.0,0.00016712,2]
[361289822,1747426257628,-400.0,0.00016712,2]
[361289823,1747426257636,-400.0,0.00016712,2]
[361289824,1747426257646,-400.0,0.00016712,2]
[361289825,1747426257657,-450.0,0.00016712,2]
[361289826,1747426257666,-1614.73,0.00016712,2]
[361289827,1747426257677,-400.0,0.00016712,2]
[361289828,1747426257686,-400.0,0.00016712,2]
[361289829,1747426257695,-400.0,0.00016712,2]
[361289830,1747426257704,-594.08,0.00016712,2]
[361289831,1747426257713,-400.0,0.00016712,2]
[361289832,1747426257723,-400.0,0.00016712,2]
[361289833,1747426257733,-400.0,0.00016712,2]
[361289834,1747426257743,-432.92,0.00016712,2]
[361289835,1747426257752,-400.0,0.00016712,2]
[361289836,1747426257761,-453.18,0.00016712,2]
[361289837,1747426257771,-448.77,0.00016712,2]
[361289838,1747426257781,-400.0,0.00016712,2]
[361289839,1747426257795,-491.91,0.00016712,2]
[361289840,1747426257805,-500.0,0.00016712,2]
[361289841,1747426257814,-150.0,0.00016712,2]
[361289842,1747426257824,-400.0,0.00016712,2]
[361289843,1747426257835,-1453.12,0.00016712,2]
[361289844,1747426257845,-695.78,0.00016712,2]
[361289845,1747426257854,-400.0,0.00016712,2]
[361289846,1747426257865,-503.58912514,0.00016712,2]
[361289847,1747426257875,-453.08,0.00016712,2]
[361289848,1747426257884,-2049.04,0.00016712,2]
[361289849,1747426257894,-400.0,0.00016712,2]
[361289850,1747426257903,-400.0,0.00016712,2]
[361289851,1747426257913,-507.26,0.00016712,2]
[361289852,1747426257922,-450.0,0.00016712,2]
[361289853,1747426257931,-1667.8,0.00016712,2]
[361289854,1747426257941,-400.0,0.00016712,2]
[361289855,1747426257950,-450.0,0.00016712,2]
[361289856,1747426257959,-1148.34,0.00016712,2]
[361289857,1747426257968,-563.81,0.00016712,2]
[361289858,1747426257977,-485.6,0.00016712,2]
[361289859,1747426257986,-400.0,0.00016712,2]
[361289860,1747426257996,-491.61,0.00016712,2]
[361289861,1747426258005,-400.0,0.00016712,2]
[361289862,1747426258015,-400.0,0.00016712,2]
[361289863,1747426258025,-1263.53,0.00016712,2]
[361289864,1747426258034,-857.38,0.00016712,2]
[361289865,1747426258043,-400.0,0.00016712,2]
[361289866,1747426258053,-450.0,0.00016712,2]
[361289867,1747426258063,-3128.87,0.00016712,2]
[361289868,1747426258072,-151.0,0.00016712,2]
[361289869,1747426258082,-151.0,0.00016712,2]
[361289870,1747426258091,-500.0,0.00016712,2]
[361289871,1747426258100,-151.0,0.00016712,2]
[361289872,1747426258110,-569.29,0.00016712,2]
[361289873,1747426258119,-151.0,0.00016712,2]
[361289874,1747426258128,-151.0,0.00016712,2]
[361289875,1747426258137,-400.0,0.00016712,2]
[361289876,1747426258146,-500.0,0.00016712,2]
[361289877,1747426258156,-400.0,0.00016712,2]
[361289878,1747426258166,-410.36,0.00016712,2]
[361289879,1747426258175,-400.0,0.00016712,2]
[361289880,1747426258184,-151.0,0.00016712,2]
[361289881,1747426258194,-151.0,0.00016712,2]
[361289882,1747426258203,-199.073378,0.00016712,2]
[361289883,1747426258214,-400.0,0.00016712,2]
[361289884,1747426258223,-500.0,0.00016712,2]
[361289885,1747426258233,-500.0,0.00016712,2]
[361289886,1747426258242,-828.59,0.00016712,2]
[361289887,1747426258251,-703.57,0.00016712,2]
[361289888,1747426258261,-400.0,0.00016712,2]
[361289889,1747426258271,-400.0,0.00016712,2]
[361289890,1747426258280,-400.0,0.00016712,2]
[361289891,1747426258290,-500.0,0.00016712,2]
[361289892,1747426258299,-400.0,0.00016712,2]
[361289893,1747426258308,-400.0,0.00016712,2]
[361289894,1747426258318,-500.21,0.00016712,2]
[361289895,1747426258327,-500.0,0.00016712,2]
[361289896,1747426258336,-400.0,0.00016712,2]
[361289897,1747426258346,-486.48,0.00016712,2]
[361289898,1747426258355,-170.84536218,0.00016712,2]
[361289899,1747426258365,-400.0,0.00016712,2]
[361289900,1747426258374,-765.3,0.00016712,2]
[361289901,1747426258383,-400.0,0.00016712,2]
[361289902,1747426258478,-471.61,0.00016712,2]
[361289903,1747426258488,-400.0,0.00016712,2]
[361289904,1747426258497,-1648.6,0.00016712,2]
[361289905,1747426258507,-186.73302446,0.00016712,2]
[361289906,1747426258516,-430.39,0.00016712,2]
[361289907,1747426258525,-871.93,0.00016712,2]
[361289908,1747426258534,-821.14,0.00016712,2]
[361289909,1747426258543,-403.59,0.00016712,2]
[361289910,1747426258553,-417.22,0.00016712,2]
[361289911,1747426258562,-400.0,0.00016712,2]
[361289912,1747426258572,-400.0,0.00016712,2]
[361289913,1747426258582,-400.0,0.00016712,2]
[361289914,1747426258592,-485.12,0.00016712,2]
[361289915,1747426258602,-400.0,0.00016712,2]
[361289916,1747426258611,-506.41741757,0.00016712,2]
[361289917,1747426258620,-400.0,0.00016712,2]